fUSD/lending_fUSD_20241225
["ID","MTS","AMOUNT","RATE_DAILY","PERIOD"]
[346615491,1735127432858,-500.0,0.00010736,2]
[346615492,1735127432868,-500.0,0.00010736,2]
[346615493,1735127432877,-3239.46,0.00010736,2]
[346615494,1735127432886,-500.0,0.00010736,2]
[346615495,1735127432896,-500.0,0.00010736,2]
[346615496,1735127432905,-500.0,0.00010737,2]
[346615497,1735127432915,-500.0,0.00010737,2]
[346615498,1735127432924,-500.0,0.00010737,2]
[346615499,1735127432933,-503.9895556,0.00010737,2]
[346615500,1735127432943,-500.0,0.00010737,2]
[346615501,1735127432952,-500.0,0.00010737,2]
[346615502,1735127432962,-500.0,0.00010737,2]
[346615503,1735127432972,-500.0,0.00010737,2]
[346615504,1735127432981,-500.0,0.00010737,2]
[346615505,1735127432991,-257.73133268,0.00010737,2]
[346615506,1735127433000,-500.0,0.00010737,2]
[346615507,1735127433009,-500.0,0.00010737,2]
[346615508,1735127433018,-500.0,0.00010737,2]
[346615509,1735127433027,-591.47485643,0.00010737,2]
[346615510,1735127433037,-500.0,0.00010737,2]
[346615511,1735127433046,-500.0,0.00010737,2]
[346615512,1735127433056,-608.32405346,0.00010737,2]
[346615513,1735127433065,-500.0,0.00010737,2]
[346615514,1735127433074,-683.15,0.00010737,2]
[346615515,1735127433084,-510.99,0.00010737,2]
[346615516,1735127433093,-1663.82,0.00010737,2]
[346615517,1735127433104,-609.52,0.00010737,2]
[346615518,1735127433113,-1003.15,0.00010737,2]
[346615519,1735127433122,-500.0,0.00010737,2]
[346615520,1735127433132,-500.0,0.00010737,2]
[346615521,1735127433141,-1248.44,0.00010737,2]
[346615522,1735127433150,-500.0,0.00010737,2]
[346615523,1735127433160,-2833.004,0.00010737,2]
[346615524,1735127433169,-178.558,0.00010737,2]
[346615525,1735127433179,-500.0,0.00010737,2]
[346615526,1735127433188,-638.36,0.00010737,2]
[346615527,1735127433198,-500.0,0.00010737,2]
[346615528,1735127433208,-500.0,0.00010737,2]
[346615529,1735127433217,-150.0,0.00010778,2]
[346615530,1735127433227,-633.29,0.0001079,2]
[346615531,1735127433237,-500.0,0.0001079,2]
[346615532,1735127433246,-500.0,0.0001079,2]
[346615533,1735127433256,-500.0,0.0001079,2]
[346615534,1735127433266,-500.0,0.0001079,2]
[346615535,1735127433276,-500.0,0.0001079,2]
[346615536,1735127433285,-500.0,0.0001079,2]
[346615537,1735127433294,-500.0,0.0001079,2]
[346615538,1735127433303,-500.0,0.0001079,2]
[346615539,1735127433313,-500.0,0.0001079,2]
[346615540,1735127433323,-500.0,0.0001079,2]
[346615541,1735127433332,-500.0,0.0001079,2]
[346615542,1735127433342,-500.0,0.0001079,2]
[346615543,1735127433351,-500.0,0.0001079,2]
[346615544,1735127433361,-928.86,0.0001079,2]
[346615545,1735127433370,-500.0,0.0001079,2]
[346615546,1735127433380,-279.24,0.0001079,2]
[346615547,1735127433390,-833.33,0.0001079,2]
[346615548,1735127433400,-214.3,0.0001079,2]
[346615549,1735127433409,-500.0,0.0001079,2]
[346615550,1735127433419,-500.0,0.0001079,2]
[346615551,1735127433428,-896.31,0.0001079,2]
[346615552,1735127433437,-500.0,0.0001079,2]
[346615553,1735127433447,-500.0,0.0001079,2]
[346615554,1735127433458,-2655.7,0.0001079,2]
[346615555,1735127433467,-757.29,0.0001079,2]
[346615556,1735127433478,-500.0,0.0001079,2]
[346615557,1735127433487,-152.47,0.0001079,2]
[346615558,1735127433496,-500.0,0.0001079,2]
[346615559,1735127433506,-4923.35,0.0001079,2]
[346615560,1735127433515,-572.89,0.0001079,2]
[346615561,1735127433773,-500.0,0.0001079,2]
[346615562,1735127433784,-500.0,0.0001079,2]
[346615563,1735127433795,-525.33,0.0001079,2]
[346615564,1735127433804,-543.83,0.0001079,2]
[346615565,1735127433814,-500.0,0.0001079,2]
[346615566,1735127433823,-243.094773,0.0001079,2]
[346615567,1735127433833,-500.0,0.0001079,2]
[346615568,1735127433842,-632.78,0.0001079,2]
[346615569,1735127433852,-500.0,0.0001079,2]
[346615570,1735127433861,-219.681786,0.0001079,2]
[346615571,1735127433871,-1569.97,0.0001079,2]
[346615572,1735127433881,-500.0,0.0001079,2]
[346615573,1735127433890,-832.91,0.0001079,2]
[346615574,1735127433899,-500.0,0.0001079,2]
[346615575,1735127433909,-500.0,0.0001079,2]
[346615576,1735127433918,-500.0,0.0001079,2]
[346615577,1735127433927,-500.0,0.0001079,2]
[346615578,1735127433937,-500.0,0.0001079,2]
[346615579,1735127433946,-1793.93,0.0001079,2]
[346615580,1735127433956,-1761.25,0.0001079,2]
[346615581,1735127433966,-500.0,0.0001079,2]
[346615582,1735127433977,-610.53,0.0001079,2]
[346615583,1735127433986,-671.69,0.0001079,2]
[346615584,1735127433996,-500.0,0.0001079,2]
[346615585,1735127434005,-500.0,0.0001079,2]
[346615586,1735127434014,-500.0,0.0001079,2]
[346615587,1735127434024,-2899.28,0.0001079,2]
[346615588,1735127434033,-500.0,0.0001079,2]
[346615589,1735127434042,-500.0,0.0001079,2]
[346615590,1735127434051,-2172.9,0.0001079,2]
[346615591,1735127434061,-385.77270089,0.0001079,2]
[346615592,1735127434070,-548.76,0.0001079,2]
[346615593,1735127434080,-500.0,0.0001079,2]
[346615594,1735127434090,-500.0,0.0001079,2]
[346615595,1735127434099,-500.0,0.0001079,2]
[346615596,1735127434108,-500.0,0.0001079,2]
[346615597,1735127434118,-500.0,0.0001079,2]
[346615598,1735127434127,-500.0,0.0001079,2]
[346615599,1735127434137,-1309.3,0.0001079,2]
[346615600,1735127434146,-500.0,0.0001079,2]
[346615601,1735127434155,-759.69,0.0001079,2]
[346615602,1735127434165,-500.0,0.0001079,2]
[346615603,1735127434174,-6709.46,0.0001079,2]
[346615604,1735127434184,-500.0,0.0001079,2]
[346615605,1735127434193,-500.0,0.0001079,2]
[346615606,1735127434203,-500.0,0.0001079,2]
[346615607,1735127434212,-500.0,0.0001079,2]
[346615608,1735127434222,-500.0,0.0001079,2]
[346615609,1735127434232,-500.0,0.0001079,2]
[346615610,1735127434241,-500.0,0.0001079,2]
[346615611,1735127434251,-500.0,0.0001079,2]
[346615612,1735127434261,-500.0,0.0001079,2]
[346615613,1735127434270,-500.0,0.0001079,2]
[346615614,1735127434280,-500.0,0.0001079,2]
[346615615,1735127434291,-500.0,0.0001079,2]
[346615616,1735127434301,-500.0,0.0001079,2]
[346615617,1735127434311,-5000.0,0.0001088,2]
[346615618,1735127434321,-713.79,0.000109,2]
[346615619,1735127434331,-500.0,0.000109,2]
[346615620,1735127434341,-500.0,0.000109,2]
[346615621,1735127434351,-500.0,0.000109,2]
[346615622,1735127434361,-500.0,0.000109,2]
[346615623,1735127434371,-500.0,0.000109,2]
[346615624,1735127434380,-548.72,0.000109,2]
[346615625,1735127434390,-500.0,0.000109,2]
[346615626,1735127434400,-500.0,0.000109,2]
[346615627,1735127434409,-500.0,0.000109,2]
[346615628,1735127434419,-500.0,0.000109,2]
[346615629,1735127434428,-500.0,0.000109,2]
[346615630,1735127434438,-500.0,0.000109,2]
[346615631,1735127434447,-500.0,0.000109,2]
[346615632,1735127434456,-500.0,0.000109,2]
[346615633,1735127434466,-516.07,0.000109,2]
[346615634,1735127434476,-500.0,0.000109,2]
[346615635,1735127434486,-500.0,0.000109,2]
[346615636,1735127434495,-500.0,0.000109,2]
[346615637,1735127434505,-500.0,0.000109,2]
[346615638,1735127434514,-500.0,0.000109,2]
[346615639,1735127434524,-500.0,0.000109,2]
[346615640,1735127434533,-500.0,0.000109,2]
[346615641,1735127434543,-629.62,0.000109,2]
[346615642,1735127434552,-500.0,0.000109,2]
[346615643,1735127434563,-500.0,0.000109,2]
[346615644,1735127434574,-500.0,0.000109,2]
[346615645,1735127434583,-500.82,0.000109,2]
[346615646,1735127434592,-500.0,0.000109,2]
[346615647,1735127434603,-500.0,0.000109,2]
[346615648,1735127434612,-868.96,0.000109,2]
[346615649,1735127434622,-500.0,0.000109,2]
[346615650,1735127434631,-614.43,0.000109,2]
[346615651,1735127434640,-500.0,0.000109,2]
[346615652,1735127434650,-500.0,0.000109,2]
[346615653,1735127434659,-500.0,0.000109,2]
[346615654,1735127434669,-500.0,0.000109,2]
[346615655,1735127434679,-500.0,0.000109,2]
[346615656,1735127434688,-500.0,0.000109,2]
[346615657,1735127434697,-500.0,0.000109,2]
[346615658,1735127434706,-500.0,0.000109,2]
[346615659,1735127434715,-500.0,0.000109,2]
[346615660,1735127434725,-500.0,0.000109,2]
[346615661,1735127434736,-500.0,0.000109,2]
[346615662,1735127434745,-500.0,0.000109,2]
[346615663,1735127434754,-536.85,0.000109,2]
[346615664,1735127434764,-500.0,0.000109,2]
[346615665,1735127434773,-500.0,0.000109,2]
[346615666,1735127434782,-500.0,0.000109,2]
[346615667,1735127434791,-500.0,0.000109,2]
[346615668,1735127434800,-500.0,0.000109,2]
[346615669,1735127434809,-702.95993,0.000109,2]
[346615670,1735127434818,-500.0,0.000109,2]
[346615671,1735127434827,-500.0,0.000109,2]
[346615672,1735127434836,-653.26,0.000109,2]
[346615673,1735127434846,-500.0,0.000109,2]
[346615674,1735127434856,-500.0,0.000109,2]
[346615675,1735127434865,-500.0,0.000109,2]
[346615676,1735127434874,-490.89190818,0.000109,2]
[346615677,1735127434884,-500.0,0.000109,2]
[346615678,1735127434894,-500.0,0.000109,2]
[346615679,1735127434903,-811.95,0.000109,2]
[346615680,1735127434913,-660.43,0.000109,2]
[346615681,1735127434922,-500.0,0.000109,2]
[346615682,1735127434931,-555.38,0.000109,2]
[346615683,1735127434941,-853.07,0.000109,2]
[346615684,1735127434952,-882.1,0.000109,2]
[346615685,1735127434962,-500.0,0.000109,2]
[346615686,1735127434971,-1100.96,0.000109,2]
[346615687,1735127434981,-500.0,0.000109,2]
[346615688,1735127434991,-635.49,0.000109,2]
[346615689,1735127435000,-500.0,0.000109,2]
[346615690,1735127435009,-659.11,0.000109,2]
[346615691,1735127435019,-2784.47,0.000109,2]
[346615692,1735127435028,-500.0,0.000109,2]
[346615693,1735127435037,-560.83,0.000109,2]
[346615694,1735127435047,-529.17,0.000109,2]
[346615695,1735127435056,-1887.14,0.000109,2]
[346615696,1735127435066,-500.0,0.000109,2]
[346615697,1735127435076,-500.0,0.000109,2]
[346615698,1735127435085,-1073.5,0.000109,2]
[346615699,1735127435094,-923.69,0.000109,2]
[346615700,1735127435103,-500.0,0.000109,2]
[346615701,1735127435113,-871.16,0.000109,2]
[346615702,1735127435122,-871.29,0.000109,2]
[346615703,1735127435131,-997.59,0.000109,2]
[346615704,1735127435140,-500.0,0.000109,2]
[346615705,1735127435149,-500.0,0.000109,2]
[346615706,1735127435159,-500.0,0.000109,2]
[346615707,1735127435168,-1899.52,0.000109,2]
[346615708,1735127435177,-1011.4,0.000109,2]
[346615709,1735127435187,-500.0,0.000109,2]
[346615710,1735127435196,-1356.28,0.000109,2]
[346615711,1735127435206,-612.88,0.000109,2]
[346615712,1735127435215,-500.0,0.000109,2]
[346615713,1735127435227,-500.0,0.000109,2]
[346615714,1735127435236,-1419.61,0.000109,2]
[346615715,1735127435246,-1207.47,0.000109,2]
[346615716,1735127435255,-500.0,0.000109,2]
[346615717,1735127435266,-500.0,0.000109,2]
[346615718,1735127435275,-177.25040795,0.000109,2]
[346615719,1735127435284,-500.0,0.000109,2]
[346615720,1735127435293,-543.33,0.000109,2]
[346615721,1735127435303,-500.0,0.000109,2]
[346615722,1735127435312,-500.0,0.000109,2]
[346615723,1735127435321,-500.0,0.000109,2]
[346615724,1735127435331,-500.0,0.000109,2]
[346615725,1735127435340,-431.5202255,0.000109,2]
[346615726,1735127435351,-359.85213615,0.000109,2]
[346615727,1735127435360,-500.0,0.000109,2]
[346615728,1735127435370,-500.0,0.000109,2]
[346615729,1735127435380,-500.0,0.000109,2]
[346615730,1735127435389,-500.0,0.000109,2]
[346615731,1735127435398,-500.0,0.000109,2]
[346615732,1735127435408,-500.0,0.000109,2]
[346615733,1735127435417,-824.81,0.000109,2]
[346615734,1735127435427,-500.0,0.000109,2]
[346615735,1735127435436,-1040.1,0.000109,2]
[346615736,1735127435445,-500.0,0.000109,2]
[346615737,1735127435455,-500.0,0.000109,2]
[346615738,1735127435465,-872.12,0.000109,2]
[346615739,1735127435476,-620.56601459,0.000109,2]
[346615740,1735127435485,-584.82,0.000109,2]
[346615741,1735127435494,-150.0,0.00010959,2]
[346615742,1735127435504,-15570.33,0.00010959,2]
[346615743,1735127435514,-1971.92,0.00010978,2]
[346615744,1735127435523,-152.42,0.00010978,2]
[346615745,1735127435532,-150.5,0.00010978,2]
[346615746,1735127435541,-159.48,0.00010978,2]
[346615747,1735127435551,-150.0,0.00010978,2]
[346615748,1735127435563,-150.0,0.00010978,2]
[346615749,1735127435573,-150.0,0.00010978,2]
[346615750,1735127435582,-150.0,0.00010978,2]
[346615751,1735127435591,-150.0,0.00010978,2]
[346615752,1735127435600,-597.88205812,0.00010979,2]
[346615753,1735127435611,-366.13414908,0.00010979,2]
[346615754,1735127435620,-2329.23774947,0.0001098,2]
[346615755,1735127435636,-2093.0,0.0001098,2]
[346615756,1735127435648,-10045.96420378,0.0001098,2]
[346615757,1735127435699,-430.68063875,0.0001098,2]
[346615758,1735127435710,-2961.68635478,0.0001098,2]
[346615759,1735127435738,-162652.5408583,0.0001098,2]
[346615760,1735127435748,-821.68316677,0.00010999,2]
[346615761,1735127435760,-178.31683323,0.00010999,2]
[346615762,1735127435769,-500.0,0.00011009,2]
[346615763,1735127435779,-227.28156024,0.00011009,2]
[346615765,1735127437587,-200.0,0.00010633,2]
[346615766,1735127437599,-280.00334765,0.00010736,2]
[346615767,1735127437616,-404.03665235,0.00010736,2]
[346615768,1735127437628,-500.0,0.0001079,2]
[346615769,1735127437640,-515.69843976,0.00011009,2]
[346615770,1735127437652,-992.77,0.00011009,2]
[346615771,1735127437663,-1748.39135647,0.00011009,2]
[346615772,1735127437719,-264.55864353,0.00011009,2]
[346615773,1735127437735,-1891.68,0.00011009,2]
[346615774,1735127437746,-1374.87498448,0.00011009,2]
[346615775,1735127437761,-420.37067343,0.00011009,2]
[346615776,1735127437805,-263.93013651,0.00011009,2]
[346615777,1735127437818,-1866.66824332,0.00011009,2]
[346615778,1735127437955,-500.0,0.0001079,2]
[346615781,1735127437966,-12233.38596226,0.00011009,2]
[346615782,1735127437979,-1453.31,0.00011009,2]
[346615784,1735127437989,-761.63,0.00011009,2]
[346615786,1735127438001,-545.79,0.00011009,2]
[346615789,1735127438013,-1354.29,0.00011009,2]
[346615791,1735127438025,-14537.19,0.00011009,2]
[346615793,1735127438037,-500.0,0.00011009,2]
[346615796,1735127438047,-1480.31,0.00011009,2]
[346615800,1735127438058,-1290.32,0.00011009,2]
[346615803,1735127438068,-596.39,0.00011009,2]
[346615806,1735127438078,-2589.36,0.00011009,2]
[346615809,1735127438090,-500.0,0.00011009,2]
[346615812,1735127438104,-500.0,0.00011009,2]
[346615814,1735127438115,-1000.0,0.00011009,2]
[346615817,1735127438125,-1079.04,0.00011009,2]
[346615819,1735127438136,-656.4,0.00011009,2]
[346615821,1735127438147,-1920.6319,0.0001101,2]
[346615823,1735127438158,-500.0,0.0001101,2]
[346615825,1735127438169,-500.0,0.0001101,2]
[346615827,1735127438180,-500.0,0.0001101,2]
[346615829,1735127438190,-500.0,0.0001101,2]
[346615832,1735127438201,-500.0,0.0001101,2]
[346615834,1735127438212,-520.55,0.0001101,2]
[346615836,1735127438222,-500.0,0.0001101,2]
[346615838,1735127438235,-500.0,0.0001101,2]
[346615841,1735127438247,-500.0,0.0001101,2]
[346615843,1735127438260,-500.0,0.0001101,2]
[346615845,1735127438270,-500.0,0.0001101,2]
[346615847,1735127438281,-563.72,0.0001101,2]
[346615849,1735127438292,-500.0,0.0001101,2]
[346615851,1735127438302,-500.0,0.0001101,2]
[346615853,1735127438313,-500.0,0.0001101,2]
[346615856,1735127438324,-500.0,0.0001101,2]
[346615858,1735127438335,-500.0,0.0001101,2]
[346615860,1735127438346,-500.0,0.0001101,2]
[346615862,1735127438356,-500.0,0.0001101,2]
[346615864,1735127438366,-500.0,0.0001101,2]
[346615866,1735127438377,-500.0,0.0001101,2]
[346615868,1735127438387,-500.0,0.0001101,2]
[346615870,1735127438397,-500.0,0.0001101,2]
[346615873,1735127438408,-553.83,0.0001101,2]
[346615875,1735127438419,-500.0,0.0001101,2]
[346615877,1735127438429,-500.0,0.0001101,2]
[346615879,1735127438441,-500.0,0.0001101,2]
[346615881,1735127438451,-500.51764521,0.0001101,2]
[346615883,1735127438462,-500.0,0.0001101,2]
[346615885,1735127438473,-306.46600584,0.0001101,2]
[346615888,1735127438485,-500.0,0.0001101,2]
[346615890,1735127438496,-613.47,0.0001101,2]
[346615892,1735127438506,-595.49,0.0001101,2]
[346615894,1735127438517,-500.0,0.0001101,2]
[346615896,1735127438527,-500.0,0.0001101,2]
[346615898,1735127438537,-500.0,0.0001101,2]
[346615901,1735127438548,-500.0,0.0001101,2]
[346615903,1735127438559,-1086.12,0.0001101,2]
[346615905,1735127438574,-500.0,0.0001101,2]
[346615907,1735127438584,-167.96361328,0.0001101,2]
[346615909,1735127438594,-500.0,0.0001101,2]
[346615911,1735127438606,-705.77,0.0001101,2]
[346615913,1735127438617,-500.0,0.0001101,2]
[346615915,1735127438628,-500.0,0.0001101,2]
[346615918,1735127438640,-500.0,0.0001101,2]
[346615920,1735127438651,-500.0,0.0001101,2]
[346615922,1735127438661,-500.0,0.0001101,2]
[346615924,1735127438672,-573.15,0.0001101,2]
[346615926,1735127438682,-500.0,0.0001101,2]
[346615928,1735127438692,-500.0,0.0001101,2]
[346615930,1735127438703,-500.0,0.0001101,2]
[346615931,1735127438714,-500.0,0.0001101,2]
[346615932,1735127438725,-500.0,0.0001101,2]
[346615933,1735127438739,-500.0,0.0001101,2]
[346615934,1735127438750,-500.0,0.0001101,2]
[346615935,1735127438761,-500.0,0.0001101,2]
[346615936,1735127438772,-500.0,0.0001101,2]
[346615937,1735127438783,-500.0,0.0001101,2]
[346615938,1735127438793,-488.50418702,0.0001101,2]
[346615939,1735127438804,-500.0,0.0001101,2]
[346615940,1735127438816,-500.0,0.0001101,2]
[346615941,1735127438827,-500.0,0.0001101,2]
[346615942,1735127438838,-500.0,0.0001101,2]
[346615943,1735127438850,-500.0,0.0001101,2]
[346615944,1735127438861,-500.0,0.0001101,2]
[346615945,1735127438871,-500.0,0.0001101,2]
[346615946,1735127438882,-500.0,0.0001101,2]
[346615947,1735127438892,-500.0,0.0001101,2]
[346615948,1735127438903,-647.3,0.0001101,2]
[346615949,1735127438913,-500.0,0.0001101,2]
[346615950,1735127438923,-304.61847298,0.0001101,2]
[346615951,1735127438934,-500.0,0.0001101,2]
[346615952,1735127438944,-652.22,0.0001101,2]
[346615953,1735127438954,-500.0,0.0001101,2]
[346615954,1735127438965,-500.0,0.0001101,2]
[346615955,1735127438975,-500.0,0.0001101,2]
[346615956,1735127438987,-500.0,0.0001101,2]
[346615957,1735127438997,-971.03,0.0001101,2]
[346615958,1735127439008,-500.0,0.0001101,2]
[346615959,1735127439019,-500.0,0.0001101,2]
[346615960,1735127439031,-500.0,0.0001101,2]
[346615961,1735127439042,-500.0,0.0001101,2]
[346615962,1735127439053,-500.0,0.0001101,2]
[346615963,1735127439063,-500.0,0.0001101,2]
[346615964,1735127439074,-608.5,0.0001101,2]
[346615965,1735127439084,-500.0,0.0001101,2]
[346615966,1735127439095,-500.0,0.0001101,2]
[346615967,1735127439106,-500.0,0.0001101,2]
[346615968,1735127439117,-500.0,0.0001101,2]
[346615969,1735127439127,-500.0,0.0001101,2]
[346615970,1735127439138,-548.75,0.0001101,2]
[346615971,1735127439149,-500.0,0.0001101,2]
[346615972,1735127439159,-500.0,0.0001101,2]
[346615973,1735127439169,-500.0,0.0001101,2]
[346615974,1735127439180,-535.06,0.0001101,2]
[346615975,1735127439191,-500.0,0.0001101,2]
[346615976,1735127439201,-500.0,0.0001101,2]
[346615977,1735127439212,-500.0,0.0001101,2]
[346615978,1735127439223,-500.0,0.0001101,2]
[346615979,1735127439235,-537.48,0.0001101,2]
[346615980,1735127439245,-500.0,0.0001101,2]
[346615981,1735127439255,-509.17,0.0001101,2]
[346615982,1735127439265,-500.0,0.0001101,2]
[346615983,1735127439275,-500.0,0.0001101,2]
[346615984,1735127439286,-500.0,0.0001101,2]
[346615985,1735127439297,-500.0,0.0001101,2]
[346615986,1735127439307,-500.0,0.0001101,2]
[346615987,1735127439318,-560.69,0.0001101,2]
[346615988,1735127439328,-500.0,0.0001101,2]
[346615989,1735127439339,-500.0,0.0001101,2]
[346615990,1735127439349,-840.12,0.0001101,2]
[346615991,1735127439360,-500.0,0.0001101,2]
[346615992,1735127439370,-500.0,0.0001101,2]
[346615993,1735127439381,-500.0,0.0001101,2]
[346615994,1735127439391,-545.46,0.0001101,2]
[346615995,1735127439402,-500.0,0.0001101,2]
[346615996,1735127439413,-500.0,0.0001101,2]
[346615997,1735127439423,-500.0,0.0001101,2]
[346615998,1735127439434,-693.24,0.0001101,2]
[346615999,1735127439444,-500.0,0.0001101,2]
[346616000,1735127439455,-500.0,0.0001101,2]
[346616001,1735127439465,-629.87,0.0001101,2]
[346616002,1735127439475,-500.0,0.0001101,2]
[346616003,1735127439486,-816.1,0.0001101,2]
[346616004,1735127439496,-500.0,0.0001101,2]
[346616005,1735127439506,-776.37,0.0001101,2]
[346616006,1735127439517,-500.0,0.0001101,2]
[346616007,1735127439527,-500.0,0.0001101,2]
[346616008,1735127439537,-500.0,0.0001101,2]
[346616009,1735127439547,-500.0,0.0001101,2]
[346616010,1735127439557,-500.0,0.0001101,2]
[346616011,1735127439569,-500.0,0.0001101,2]
[346616012,1735127439579,-500.0,0.0001101,2]
[346616013,1735127439589,-500.0,0.0001101,2]
[346616014,1735127439599,-506.99,0.0001101,2]
[346616015,1735127439610,-530.55956157,0.0001101,2]
[346616016,1735127439620,-500.0,0.0001101,2]
[346616017,1735127439630,-307.10578361,0.0001101,2]
[346616018,1735127439641,-500.0,0.0001101,2]
[346616020,1735127439651,-719.32,0.0001101,2]
[346616022,1735127439662,-500.0,0.0001101,2]
[346616023,1735127439671,-503.97,0.0001101,2]
[346616024,1735127439682,-500.0,0.0001101,2]
[346616025,1735127439692,-500.0,0.0001101,2]
[346616026,1735127439703,-500.0,0.0001101,2]
[346616027,1735127439714,-799.41,0.0001101,2]
[346616028,1735127439724,-500.0,0.0001101,2]
[346616029,1735127439737,-500.0,0.0001101,2]
[346616030,1735127439748,-828.69,0.0001101,2]
[346616031,1735127439758,-1353.54,0.0001101,2]
[346616032,1735127439769,-500.0,0.0001101,2]
[346616033,1735127439780,-500.0,0.0001101,2]
[346616034,1735127439791,-500.0,0.0001101,2]
[346616035,1735127439802,-500.0,0.0001101,2]
[346616036,1735127439813,-883.71,0.0001101,2]
[346616037,1735127439824,-500.0,0.0001101,2]
[346616038,1735127439834,-871.34,0.0001101,2]
[346616039,1735127439844,-591.85655901,0.0001101,2]
[346616040,1735127439855,-500.0,0.0001101,2]
[346616041,1735127439865,-500.0,0.0001101,2]
[346616042,1735127439875,-500.0,0.0001101,2]
[346616043,1735127439885,-500.0,0.0001101,2]
[346616044,1735127439896,-500.0,0.0001101,2]
[346616045,1735127439906,-500.0,0.0001101,2]
[346616046,1735127439916,-500.0,0.0001101,2]
[346616047,1735127439926,-500.0,0.0001101,2]
[346616048,1735127439937,-564.78,0.0001101,2]
[346616049,1735127439948,-500.0,0.0001101,2]
[346616050,1735127439959,-500.0,0.0001101,2]
[346616051,1735127439970,-500.0,0.0001101,2]
[346616052,1735127439981,-500.0,0.0001101,2]
[346616053,1735127439992,-500.0,0.0001101,2]
[346616054,1735127440003,-602.72982453,0.0001101,2]
[346616055,1735127440015,-500.0,0.0001101,2]
[346616056,1735127440027,-500.0,0.0001101,2]
[346616057,1735127440037,-500.0,0.0001101,2]
[346616058,1735127440047,-500.0,0.0001101,2]
[346616059,1735127440058,-500.0,0.0001101,2]
[346616060,1735127440068,-2087.65,0.0001101,2]
[346616061,1735127440078,-500.0,0.0001101,2]
[346616062,1735127440088,-500.0,0.0001101,2]
[346616063,1735127440098,-500.0,0.0001101,2]
[346616064,1735127440108,-500.0,0.0001101,2]
[346616065,1735127440119,-500.0,0.0001101,2]
[346616066,1735127440129,-500.0,0.0001101,2]
[346616067,1735127440139,-500.0,0.0001101,2]
[346616068,1735127440149,-369.16,0.0001101,2]
[346616069,1735127440159,-500.0,0.0001101,2]
[346616070,1735127440169,-500.0,0.0001101,2]
[346616071,1735127440179,-500.0,0.0001101,2]
[346616072,1735127440189,-500.0,0.0001101,2]
[346616073,1735127440199,-500.0,0.0001101,2]
[346616074,1735127440209,-500.0,0.0001101,2]
[346616075,1735127440219,-500.0,0.0001101,2]
[346616076,1735127440229,-500.0,0.0001101,2]
[346616077,1735127440239,-500.0,0.0001101,2]